[Event "Titled Tuesday Blitz November 07 Early 2023"]
[White "Klukin, Kirill"]
[Black "Jaskolka, Tomasz"]
[WhiteFideId "24199273"]
[BlackFideId "1170791"]
[WhiteElo "2847"]
[BlackElo "2573"]
[Result "1-0"]
[Round "2"]
[TimeControl "180+1"]
[Date "2023.11.07"]
[WhiteClock "0:00:32"]
[BlackClock "0:00:12"]
[Board "45"]

1. d4 {[%clk 0:03:00]}  d5 {[%clk 0:02:59]} 2. c3 {[%clk 0:03:01]}  Nf6 {[%clk 0:02:58]} 3. Nf3 {[%clk 0:03:01]}  c6 {[%clk 0:02:50]} 4. Bf4 {[%clk 0:02:54]}  Bf5 {[%clk 0:02:43]} 5. Nbd2 {[%clk 0:02:54]}  Nbd7 {[%clk 0:02:39]} 6. Nh4 {[%clk 0:02:49]}  Bg4 {[%clk 0:02:34]} 7. h3 {[%clk 0:02:49]}  Bh5 {[%clk 0:02:35]} 8. g4 {[%clk 0:02:49]}  Bg6 {[%clk 0:02:35]} 9. Bg2 {[%clk 0:02:48]}  e6 {[%clk 0:02:32]} 10. Nxg6 {[%clk 0:02:42]}  hxg6 {[%clk 0:02:33]} 11. e4 {[%clk 0:02:35]}  dxe4 {[%clk 0:02:27]} 12. Nxe4 {[%clk 0:02:36]}  Nxe4 {[%clk 0:02:27]} 13. Bxe4 {[%clk 0:02:36]}  Nf6 {[%clk 0:02:28]} 14. Bg2 {[%clk 0:02:36]}  Nd5 {[%clk 0:02:25]} 15. Be5 {[%clk 0:02:16]}  Bd6 {[%clk 0:02:01]} 16. Bxg7 {[%clk 0:01:46]}  Rh7 {[%clk 0:02:02]} 17. Be5 {[%clk 0:01:46]}  Bxe5 {[%clk 0:02:02]} 18. dxe5 {[%clk 0:01:47]}  Nf4 {[%clk 0:01:58]} 19. Bf1 {[%clk 0:01:35]}  Qg5 {[%clk 0:01:33]} 20. Qf3 {[%clk 0:01:02]}  Qxe5+ {[%clk 0:01:30]} 21. Qe3 {[%clk 0:01:03]}  Qxe3+ {[%clk 0:00:55]} 22. fxe3 {[%clk 0:01:03]}  Nd5 {[%clk 0:00:56]} 23. Ke2 {[%clk 0:01:01]}  g5 {[%clk 0:00:51]} 24. Bg2 {[%clk 0:01:00]}  O-O-O {[%clk 0:00:49]} 25. Rad1 {[%clk 0:00:59]}  f6 {[%clk 0:00:47]} 26. Rhf1 {[%clk 0:00:57]}  Rh6 {[%clk 0:00:38]} 27. Rf3 {[%clk 0:00:46]}  Rd7 {[%clk 0:00:36]} 28. Rdf1 {[%clk 0:00:44]}  Rf7 {[%clk 0:00:23]} 29. R3f2 {[%clk 0:00:41]}  Kd7 {[%clk 0:00:21]} 30. Rd1 {[%clk 0:00:41]}  Ke7 {[%clk 0:00:22]} 31. a3 {[%clk 0:00:42]}  Rh8 {[%clk 0:00:20]} 32. Rd4 {[%clk 0:00:40]}  Nb6 {[%clk 0:00:19]} 33. Rf1 {[%clk 0:00:38]}  Rd8 {[%clk 0:00:20]} 34. Rfd1 {[%clk 0:00:38]}  Rxd4 {[%clk 0:00:20]} 35. exd4 {[%clk 0:00:38]}  f5 {[%clk 0:00:19]} 36. gxf5 {[%clk 0:00:37]}  exf5 {[%clk 0:00:20]} 37. Kd3 {[%clk 0:00:35]}  Kd6 {[%clk 0:00:19]} 38. c4 {[%clk 0:00:34]}  c5 {[%clk 0:00:18]} 39. dxc5+ {[%clk 0:00:34]}  Kxc5 {[%clk 0:00:18]} 40. b4+ {[%clk 0:00:35]}  Kd6 {[%clk 0:00:16]} 41. c5+ {[%clk 0:00:36]}  Ke5 {[%clk 0:00:17]} 42. cxb6 {[%clk 0:00:37]}  axb6 {[%clk 0:00:16]} 43. Ke3 {[%clk 0:00:35]}  Rc7 {[%clk 0:00:14]} 44. Rd5+ {[%clk 0:00:35]}  Ke6 {[%clk 0:00:14]} 45. Rd3 {[%clk 0:00:33]}  Rc2 {[%clk 0:00:14]} 46. Bxb7 {[%clk 0:00:32]}  Rh2 {[%clk 0:00:13]} 47. Kd4 {[%clk 0:00:32]}  Rc2 {[%clk 0:00:14]} 48. Ba6 {[%clk 0:00:28]}  f4 {[%clk 0:00:13]} 49. Bc4+ {[%clk 0:00:28]}  Kf5 {[%clk 0:00:13]} 50. Bd5 {[%clk 0:00:28]}  g4 {[%clk 0:00:09]} 51. hxg4+ {[%clk 0:00:28]}  Kxg4 {[%clk 0:00:10]} 52. a4 {[%clk 0:00:29]}  Rb2 {[%clk 0:00:10]} 53. Kc4 {[%clk 0:00:29]}  Rc2+ {[%clk 0:00:10]} 54. Kb5 {[%clk 0:00:29]}  Rb2 {[%clk 0:00:10]} 55. Rd4 {[%clk 0:00:30]}  Kg3 {[%clk 0:00:10]} 56. Kxb6 {[%clk 0:00:30]}  f3 {[%clk 0:00:11]} 57. Bxf3 {[%clk 0:00:31]}  Kxf3 {[%clk 0:00:11]} 58. a5 {[%clk 0:00:31]}  Ke3 {[%clk 0:00:12]} 59. Rh4 {[%clk 0:00:31]}  Kd3 {[%clk 0:00:13]} 60. a6 {[%clk 0:00:32]}  Ra2 {[%clk 0:00:12]} 61. a7 {[%clk 0:00:32]} 1-0


[Site "https://www.chess.com"]

[Event "Titled Tuesday Blitz November 07 Early 2023"]
[White "Beerdsen, Thomas"]
[Black "Vestby-Ellingsen, Mads"]
[WhiteFideId "1030108"]
[BlackFideId "1520857"]
[WhiteElo "2845"]
[BlackElo "2568"]
[Result "1-0"]
[Round "2"]
[TimeControl "180+1"]
[Date "2023.11.07"]
[WhiteClock "0:00:06"]
[BlackClock "0:00:00"]
[Board "47"]

1. e4 {[%clk 0:03:00]}  e5 {[%clk 0:02:59]} 2. Nf3 {[%clk 0:02:58]}  d5 {[%clk 0:02:58]} 3. exd5 {[%clk 0:02:51]}  e4 {[%clk 0:02:58]} 4. Qe2 {[%clk 0:02:49]}  Nf6 {[%clk 0:02:58]} 5. d3 {[%clk 0:02:44]}  Qxd5 {[%clk 0:02:57]} 6. Nbd2 {[%clk 0:02:38]}  Be7 {[%clk 0:02:52]} 7. dxe4 {[%clk 0:02:34]}  Qh5 {[%clk 0:02:47]} 8. Qb5+ {[%clk 0:02:31]}  Nc6 {[%clk 0:02:47]} 9. Qxh5 {[%clk 0:02:30]}  Nxh5 {[%clk 0:02:48]} 10. c3 {[%clk 0:02:27]}  Bd7 {[%clk 0:02:37]} 11. Nb3 {[%clk 0:02:19]}  a5 {[%clk 0:02:31]} 12. Be3 {[%clk 0:02:16]}  b6 {[%clk 0:02:25]} 13. O-O-O {[%clk 0:02:05]}  a4 {[%clk 0:02:24]} 14. Nbd4 {[%clk 0:02:05]}  a3 {[%clk 0:02:19]} 15. b3 {[%clk 0:02:02]}  Nf6 {[%clk 0:02:18]} 16. Bb5 {[%clk 0:01:25]}  Nxd4 {[%clk 0:01:58]} 17. Bxd7+ {[%clk 0:01:25]}  Nxd7 {[%clk 0:01:58]} 18. Bxd4 {[%clk 0:01:20]}  Bc5 {[%clk 0:01:33]} 19. g3 {[%clk 0:01:01]}  f6 {[%clk 0:01:31]} 20. Rhe1 {[%clk 0:00:57]}  O-O-O {[%clk 0:01:24]} 21. b4 {[%clk 0:00:54]}  Bxd4 {[%clk 0:01:22]} 22. cxd4 {[%clk 0:00:53]}  Rhe8 {[%clk 0:01:14]} 23. Kc2 {[%clk 0:00:51]}  Kb7 {[%clk 0:01:10]} 24. Re3 {[%clk 0:00:43]}  Nf8 {[%clk 0:01:03]} 25. Kb3 {[%clk 0:00:40]}  Ra8 {[%clk 0:00:59]} 26. Rc1 {[%clk 0:00:34]}  Ng6 {[%clk 0:00:58]} 27. Rec3 {[%clk 0:00:32]}  Re7 {[%clk 0:00:56]} 28. Nd2 {[%clk 0:00:29]}  Rd8 {[%clk 0:00:56]} 29. d5 {[%clk 0:00:22]}  Ra8 {[%clk 0:00:55]} 30. f3 {[%clk 0:00:21]}  Ne5 {[%clk 0:00:50]} 31. Nc4 {[%clk 0:00:22]}  Nf7 {[%clk 0:00:50]} 32. Nxa3 {[%clk 0:00:19]}  f5 {[%clk 0:00:50]} 33. Nb5 {[%clk 0:00:18]}  Kb8 {[%clk 0:00:31]} 34. Nxc7 {[%clk 0:00:14]}  Ra7 {[%clk 0:00:28]} 35. Nb5 {[%clk 0:00:14]}  Rad7 {[%clk 0:00:28]} 36. Rc8+ {[%clk 0:00:11]}  Kb7 {[%clk 0:00:28]} 37. Rf8 {[%clk 0:00:10]}  fxe4 {[%clk 0:00:26]} 38. fxe4 {[%clk 0:00:10]}  Rd8 {[%clk 0:00:17]} 39. Rxd8 {[%clk 0:00:09]}  Nxd8 {[%clk 0:00:18]} 40. Rf1 {[%clk 0:00:08]}  Kb8 {[%clk 0:00:14]} 41. Nc3 {[%clk 0:00:07]}  Nf7 {[%clk 0:00:13]} 42. Kc4 {[%clk 0:00:08]}  Ne5+ {[%clk 0:00:10]} 43. Kd4 {[%clk 0:00:08]}  Kc8 {[%clk 0:00:09]} 44. d6 {[%clk 0:00:08]}  Re8 {[%clk 0:00:09]} 45. Nd5 {[%clk 0:00:08]}  Nc6+ {[%clk 0:00:10]} 46. Kd3 {[%clk 0:00:07]}  Ne5+ {[%clk 0:00:09]} 47. Kc3 {[%clk 0:00:08]}  Nd7 {[%clk 0:00:08]} 48. Kd4 {[%clk 0:00:08]}  Kd8 {[%clk 0:00:04]} 49. a4 {[%clk 0:00:07]}  Kc8 {[%clk 0:00:02]} 50. a5 {[%clk 0:00:07]}  bxa5 {[%clk 0:00:03]} 51. bxa5 {[%clk 0:00:08]}  Kb7 {[%clk 0:00:03]} 52. Rb1+ {[%clk 0:00:09]}  Kc6 {[%clk 0:00:04]} 53. a6 {[%clk 0:00:07]}  Ra8 {[%clk 0:00:03]} 54. e5 {[%clk 0:00:05]}  Re8 {[%clk 0:00:02]} 55. a7 {[%clk 0:00:05]}  Ra8 {[%clk 0:00:02]} 56. Rc1+ {[%clk 0:00:04]}  Kb7 {[%clk 0:00:01]} 57. Ra1 {[%clk 0:00:05]}  Kc6 {[%clk 0:00:01]} 58. e6 {[%clk 0:00:05]}  Kxd6 {[%clk 0:00:01]} 59. exd7 {[%clk 0:00:05]}  Kxd7 {[%clk 0:00:00]} 60. Nb6+ {[%clk 0:00:06]} 1-0


[Site "https://www.chess.com"]

[Event "Titled Tuesday Blitz November 07 Early 2023"]
[White "The_Sherman_Variation"]
[Black "Tarigan, Gilbert Elroy"]
[BlackFideId "7108133"]
[WhiteElo "2568"]
[BlackElo "2839"]
[Result "0-1"]
[Round "2"]
[TimeControl "180+1"]
[Date "2023.11.07"]
[WhiteClock "0:00:20"]
[BlackClock "0:00:15"]
[Board "48"]

1. e4 {[%clk 0:03:00]}  a6 {[%clk 0:02:54]} 2. d4 {[%clk 0:03:00]}  c6 {[%clk 0:02:54]} 3. c3 {[%clk 0:02:57]}  d5 {[%clk 0:02:53]} 4. e5 {[%clk 0:02:57]}  Bf5 {[%clk 0:02:54]} 5. Nf3 {[%clk 0:02:57]}  e6 {[%clk 0:02:53]} 6. Be2 {[%clk 0:02:58]}  Ne7 {[%clk 0:02:39]} 7. O-O {[%clk 0:02:56]}  h6 {[%clk 0:02:38]} 8. Na3 {[%clk 0:02:55]}  Nd7 {[%clk 0:02:28]} 9. Nc2 {[%clk 0:02:55]}  c5 {[%clk 0:02:24]} 10. c4 {[%clk 0:02:49]}  dxc4 {[%clk 0:02:20]} 11. Bxc4 {[%clk 0:02:46]}  b5 {[%clk 0:02:18]} 12. Be2 {[%clk 0:02:45]}  Bxc2 {[%clk 0:02:11]} 13. Qxc2 {[%clk 0:02:45]}  Nd5 {[%clk 0:02:06]} 14. a4 {[%clk 0:02:35]}  c4 {[%clk 0:01:51]} 15. Bd2 {[%clk 0:02:26]}  Bb4 {[%clk 0:01:41]} 16. Bxb4 {[%clk 0:02:15]}  Nxb4 {[%clk 0:01:42]} 17. Qe4 {[%clk 0:02:15]}  O-O {[%clk 0:01:39]} 18. h4 {[%clk 0:02:02]}  Nb6 {[%clk 0:01:36]} 19. axb5 {[%clk 0:01:56]}  axb5 {[%clk 0:01:37]} 20. Nd2 {[%clk 0:01:50]}  Qd5 {[%clk 0:01:26]} 21. Qg4 {[%clk 0:01:49]}  Rxa1 {[%clk 0:01:23]} 22. Rxa1 {[%clk 0:01:48]}  Nc2 {[%clk 0:01:21]} 23. Ne4 {[%clk 0:01:36]}  Qxd4 {[%clk 0:01:08]} 24. Ra7 {[%clk 0:01:22]}  Nd5 {[%clk 0:00:52]} 25. Rd7 {[%clk 0:01:07]}  Qxe5 {[%clk 0:00:52]} 26. Bd1 {[%clk 0:00:55]}  Ncb4 {[%clk 0:00:36]} 27. Ng3 {[%clk 0:00:50]}  Nf6 {[%clk 0:00:31]} 28. Qf3 {[%clk 0:00:50]}  Qxb2 {[%clk 0:00:25]} 29. Rb7 {[%clk 0:00:48]}  Nbd5 {[%clk 0:00:24]} 30. Ne2 {[%clk 0:00:34]}  b4 {[%clk 0:00:18]} 31. Kh2 {[%clk 0:00:31]}  Qe5+ {[%clk 0:00:16]} 32. g3 {[%clk 0:00:30]}  b3 {[%clk 0:00:16]} 33. Bxb3 {[%clk 0:00:31]}  cxb3 {[%clk 0:00:16]} 34. Rxb3 {[%clk 0:00:31]}  Rc8 {[%clk 0:00:16]} 35. Rb1 {[%clk 0:00:22]}  Qe4 {[%clk 0:00:15]} 36. Ng1 {[%clk 0:00:20]}  Qxb1 {[%clk 0:00:15]} 0-1


[Site "https://www.chess.com"]

[Event "Titled Tuesday Blitz November 07 Early 2023"]
[White "Pendos666"]
[Black "Jia, Haoxiang"]
[BlackFideId "8602999"]
[WhiteElo "2832"]
[BlackElo "2565"]
[Result "1-0"]
[Round "2"]
[TimeControl "180+1"]
[Date "2023.11.07"]
[WhiteClock "0:01:52"]
[BlackClock "0:00:57"]
[Board "52"]

1. e4 {[%clk 0:03:00]}  c5 {[%clk 0:02:55]} 2. Nf3 {[%clk 0:03:00]}  d6 {[%clk 0:02:55]} 3. d4 {[%clk 0:03:00]}  cxd4 {[%clk 0:02:56]} 4. Nxd4 {[%clk 0:03:00]}  Nf6 {[%clk 0:02:57]} 5. f3 {[%clk 0:02:59]}  e5 {[%clk 0:02:54]} 6. Bb5+ {[%clk 0:02:58]}  Bd7 {[%clk 0:02:49]} 7. Bxd7+ {[%clk 0:02:58]}  Qxd7 {[%clk 0:02:49]} 8. Nf5 {[%clk 0:02:59]}  d5 {[%clk 0:02:48]} 9. Bg5 {[%clk 0:02:58]}  d4 {[%clk 0:02:44]} 10. c3 {[%clk 0:02:57]}  Nc6 {[%clk 0:02:34]} 11. cxd4 {[%clk 0:02:52]}  Bb4+ {[%clk 0:02:33]} 12. Kf2 {[%clk 0:02:44]}  O-O {[%clk 0:02:27]} 13. Bxf6 {[%clk 0:02:34]}  gxf6 {[%clk 0:02:27]} 14. dxe5 {[%clk 0:02:10]}  Bc5+ {[%clk 0:02:21]} 15. Kg3 {[%clk 0:02:06]}  Qc7 {[%clk 0:02:16]} 16. Nc3 {[%clk 0:01:59]}  Nxe5 {[%clk 0:02:02]} 17. Nd5 {[%clk 0:01:56]}  Qd8 {[%clk 0:02:01]} 18. Qc1 {[%clk 0:01:53]}  Kh8 {[%clk 0:01:08]} 19. Qxc5 {[%clk 0:01:53]}  Rg8+ {[%clk 0:01:06]} 20. Kh3 {[%clk 0:01:53]}  Rc8 {[%clk 0:00:57]} 21. Qe7 {[%clk 0:01:52]} 1-0


[Site "https://www.chess.com"]

[Event "Titled Tuesday Blitz November 07 Early 2023"]
[White "Lymar, Vladislav"]
[Black "Bacrot, Etienne"]
[WhiteFideId "14162180"]
[BlackFideId "605506"]
[WhiteElo "2562"]
[BlackElo "2825"]
[Result "0-1"]
[Round "2"]
[TimeControl "180+1"]
[Date "2023.11.07"]
[WhiteClock "0:00:31"]
[BlackClock "0:02:09"]
[Board "53"]

1. d4 {[%clk 0:03:00]}  d5 {[%clk 0:02:59]} 2. c4 {[%clk 0:03:01]}  c6 {[%clk 0:02:59]} 3. Nf3 {[%clk 0:02:56]}  Nf6 {[%clk 0:02:59]} 4. Qc2 {[%clk 0:02:53]}  g6 {[%clk 0:02:58]} 5. cxd5 {[%clk 0:02:50]}  cxd5 {[%clk 0:02:58]} 6. Bf4 {[%clk 0:02:51]}  Nc6 {[%clk 0:02:58]} 7. Nc3 {[%clk 0:02:49]}  Bg7 {[%clk 0:02:57]} 8. e3 {[%clk 0:02:48]}  O-O {[%clk 0:02:56]} 9. Ne5 {[%clk 0:02:48]}  Nh5 {[%clk 0:02:54]} 10. Nxc6 {[%clk 0:02:42]}  bxc6 {[%clk 0:02:54]} 11. Bg3 {[%clk 0:02:37]}  Nxg3 {[%clk 0:02:52]} 12. hxg3 {[%clk 0:02:38]}  e5 {[%clk 0:02:52]} 13. dxe5 {[%clk 0:02:36]}  Bxe5 {[%clk 0:02:52]} 14. Be2 {[%clk 0:02:36]}  Rb8 {[%clk 0:02:52]} 15. O-O {[%clk 0:02:00]}  h5 {[%clk 0:02:50]} 16. Na4 {[%clk 0:01:57]}  Qf6 {[%clk 0:02:48]} 17. Rac1 {[%clk 0:01:51]}  Bd7 {[%clk 0:02:36]} 18. Nc5 {[%clk 0:01:44]}  Bf5 {[%clk 0:02:35]} 19. Qa4 {[%clk 0:01:36]}  Bxb2 {[%clk 0:02:23]} 20. Rcd1 {[%clk 0:01:21]}  Qc3 {[%clk 0:02:21]} 21. Na6 {[%clk 0:00:59]}  Bc2 {[%clk 0:02:16]} 22. Qf4 {[%clk 0:00:46]}  Bxd1 {[%clk 0:02:12]} 23. Rxd1 {[%clk 0:00:45]}  Rb6 {[%clk 0:02:11]} 24. Nc7 {[%clk 0:00:31]}  Qe5 {[%clk 0:02:09]} 0-1


[Site "https://www.chess.com"]

[Event "Titled Tuesday Blitz November 07 Early 2023"]
[White "Iskusnyh, Sergei"]
[Black "Lobanov, Sergei"]
[WhiteFideId "4120027"]
[BlackFideId "24183750"]
[WhiteElo "2550"]
[BlackElo "2813"]
[Result "0-1"]
[Round "2"]
[TimeControl "180+1"]
[Date "2023.11.07"]
[WhiteClock "0:00:00"]
[BlackClock "0:00:05"]
[Board "58"]

1. d4 {[%clk 0:02:56]}  Nf6 {[%clk 0:02:59]} 2. c4 {[%clk 0:02:55]}  e6 {[%clk 0:03:00]} 3. g3 {[%clk 0:02:56]}  d5 {[%clk 0:02:59]} 4. Bg2 {[%clk 0:02:56]}  Bb4+ {[%clk 0:03:00]} 5. Nd2 {[%clk 0:02:51]}  O-O {[%clk 0:03:00]} 6. Nf3 {[%clk 0:02:50]}  b6 {[%clk 0:03:00]} 7. O-O {[%clk 0:02:48]}  Bb7 {[%clk 0:03:01]} 8. b3 {[%clk 0:02:47]}  a5 {[%clk 0:02:59]} 9. Bb2 {[%clk 0:02:45]}  a4 {[%clk 0:02:59]} 10. Qc2 {[%clk 0:02:45]}  c5 {[%clk 0:02:34]} 11. dxc5 {[%clk 0:02:34]}  bxc5 {[%clk 0:02:20]} 12. a3 {[%clk 0:02:26]}  Bxd2 {[%clk 0:01:51]} 13. Nxd2 {[%clk 0:02:24]}  Nbd7 {[%clk 0:01:52]} 14. b4 {[%clk 0:02:11]}  Qe7 {[%clk 0:01:48]} 15. cxd5 {[%clk 0:02:01]}  Bxd5 {[%clk 0:01:48]} 16. e4 {[%clk 0:01:59]}  Bb7 {[%clk 0:01:42]} 17. e5 {[%clk 0:01:45]}  Nd5 {[%clk 0:01:38]} 18. b5 {[%clk 0:01:42]}  N7b6 {[%clk 0:01:00]} 19. Ne4 {[%clk 0:01:40]}  Rab8 {[%clk 0:00:27]} 20. Qxc5 {[%clk 0:01:20]}  Rfc8 {[%clk 0:00:19]} 21. Qxe7 {[%clk 0:01:13]}  Nxe7 {[%clk 0:00:19]} 22. Nd6 {[%clk 0:01:13]}  Rc2 {[%clk 0:00:12]} 23. Nxb7 {[%clk 0:00:55]}  Rxb2 {[%clk 0:00:12]} 24. Nd6 {[%clk 0:00:52]}  Ned5 {[%clk 0:00:09]} 25. Rfc1 {[%clk 0:00:51]}  h6 {[%clk 0:00:08]} 26. Rc6 {[%clk 0:00:39]}  Rb3 {[%clk 0:00:08]} 27. h4 {[%clk 0:00:37]}  Nd7 {[%clk 0:00:08]} 28. Bxd5 {[%clk 0:00:35]}  exd5 {[%clk 0:00:08]} 29. Re1 {[%clk 0:00:25]}  Rxa3 {[%clk 0:00:07]} 30. Nxf7 {[%clk 0:00:25]}  Kxf7 {[%clk 0:00:05]} 31. e6+ {[%clk 0:00:25]}  Ke8 {[%clk 0:00:05]} 32. exd7+ {[%clk 0:00:25]}  Kxd7 {[%clk 0:00:06]} 33. Rg6 {[%clk 0:00:25]}  Rb3 {[%clk 0:00:03]} 34. Rxg7+ {[%clk 0:00:21]}  Kd6 {[%clk 0:00:03]} 35. Rg6+ {[%clk 0:00:21]}  Kc5 {[%clk 0:00:04]} 36. Rc1+ {[%clk 0:00:20]}  Kxb5 {[%clk 0:00:04]} 37. Rxh6 {[%clk 0:00:20]}  a3 {[%clk 0:00:04]} 38. Rh7 {[%clk 0:00:20]}  Kb4 {[%clk 0:00:03]} 39. Ra7 {[%clk 0:00:19]}  Rb5 {[%clk 0:00:03]} 40. Rc8 {[%clk 0:00:18]}  Rb1+ {[%clk 0:00:02]} 41. Kg2 {[%clk 0:00:18]}  Rb2 {[%clk 0:00:02]} 42. Rca8 {[%clk 0:00:18]}  Rb3 {[%clk 0:00:02]} 43. Ra4+ {[%clk 0:00:17]}  Kc3 {[%clk 0:00:02]} 44. Rxa3 {[%clk 0:00:17]}  d4 {[%clk 0:00:03]} 45. h5 {[%clk 0:00:17]}  Rxh5 {[%clk 0:00:03]} 46. Rc8+ {[%clk 0:00:16]}  Kb2 {[%clk 0:00:03]} 47. Rxb3+ {[%clk 0:00:16]}  Kxb3 {[%clk 0:00:04]} 48. Rd8 {[%clk 0:00:16]}  Kc3 {[%clk 0:00:05]} 49. g4 {[%clk 0:00:17]}  Re5 {[%clk 0:00:02]} 50. Kg3 {[%clk 0:00:16]}  d3 {[%clk 0:00:03]} 51. f4 {[%clk 0:00:16]}  Re3+ {[%clk 0:00:03]} 52. Kh4 {[%clk 0:00:16]}  Re4 {[%clk 0:00:04]} 53. Rxd3+ {[%clk 0:00:14]}  Kxd3 {[%clk 0:00:04]} 54. f5 {[%clk 0:00:15]}  Kd4 {[%clk 0:00:04]} 55. Kg5 {[%clk 0:00:15]}  Ke5 {[%clk 0:00:04]} 56. f6 {[%clk 0:00:15]}  Rf4 {[%clk 0:00:04]} 57. Kh6 {[%clk 0:00:08]}  Kxf6 {[%clk 0:00:04]} 58. g5+ {[%clk 0:00:08]}  Kf7 {[%clk 0:00:04]} 59. g6+ {[%clk 0:00:00]}  Kg8 {[%clk 0:00:05]} 0-1


[Site "https://www.chess.com"]

[Event "Titled Tuesday Blitz November 07 Early 2023"]
[White "Yeremyan_ChessMate"]
[Black "Rietze, Clemens, Dr."]
[BlackFideId "24620351"]
[WhiteElo "2787"]
[BlackElo "2534"]
[Result "1-0"]
[Round "2"]
[TimeControl "180+1"]
[Date "2023.11.07"]
[WhiteClock "0:01:57"]
[BlackClock "0:01:34"]
[Board "68"]

1. e4 {[%clk 0:02:57]}  c5 {[%clk 0:02:59]} 2. Nc3 {[%clk 0:02:57]}  Nc6 {[%clk 0:03:00]} 3. Bb5 {[%clk 0:02:58]}  Nd4 {[%clk 0:02:58]} 4. Bc4 {[%clk 0:02:58]}  e6 {[%clk 0:02:57]} 5. Nge2 {[%clk 0:02:58]}  Nf6 {[%clk 0:02:57]} 6. O-O {[%clk 0:02:58]}  d5 {[%clk 0:02:55]} 7. exd5 {[%clk 0:02:52]}  exd5 {[%clk 0:02:55]} 8. Nxd4 {[%clk 0:02:51]}  dxc4 {[%clk 0:02:54]} 9. Re1+ {[%clk 0:02:46]}  Be7 {[%clk 0:02:54]} 10. Nf3 {[%clk 0:02:47]}  O-O {[%clk 0:02:54]} 11. b3 {[%clk 0:02:47]}  cxb3 {[%clk 0:02:50]} 12. axb3 {[%clk 0:02:48]}  Bd6 {[%clk 0:02:49]} 13. h3 {[%clk 0:02:47]}  b6 {[%clk 0:02:41]} 14. Bb2 {[%clk 0:02:48]}  Bb7 {[%clk 0:02:42]} 15. d4 {[%clk 0:02:47]}  cxd4 {[%clk 0:02:36]} 16. Nxd4 {[%clk 0:02:42]}  Bb4 {[%clk 0:02:26]} 17. Nf5 {[%clk 0:02:33]}  a6 {[%clk 0:02:05]} 18. Re3 {[%clk 0:02:20]}  Qc7 {[%clk 0:01:35]} 19. Rg3 {[%clk 0:01:58]}  Nh5 {[%clk 0:01:34]} 20. Qxh5 {[%clk 0:01:57]} 1-0


[Site "https://www.chess.com"]

[Event "Titled Tuesday Blitz November 07 Early 2023"]
[White "topce"]
[Black "Liyanage, Ranindu Dilshan"]
[BlackFideId "9915834"]
[WhiteElo "2530"]
[BlackElo "2775"]
[Result "0-1"]
[Round "2"]
[TimeControl "180+1"]
[Date "2023.11.07"]
[WhiteClock "0:00:57"]
[BlackClock "0:00:35"]
[Board "72"]

1. c4 {[%clk 0:03:00]}  e6 {[%clk 0:02:56]} 2. d4 {[%clk 0:02:59]}  d5 {[%clk 0:02:57]} 3. Nc3 {[%clk 0:02:59]}  Nf6 {[%clk 0:02:57]} 4. cxd5 {[%clk 0:02:59]}  exd5 {[%clk 0:02:58]} 5. Bg5 {[%clk 0:02:59]}  Bb4 {[%clk 0:02:59]} 6. e3 {[%clk 0:02:59]}  h6 {[%clk 0:02:59]} 7. Bxf6 {[%clk 0:02:58]}  Qxf6 {[%clk 0:02:58]} 8. Qa4+ {[%clk 0:02:59]}  Nc6 {[%clk 0:02:57]} 9. Bb5 {[%clk 0:02:59]}  O-O {[%clk 0:02:45]} 10. Bxc6 {[%clk 0:02:56]}  Bxc3+ {[%clk 0:02:45]} 11. bxc3 {[%clk 0:02:57]}  bxc6 {[%clk 0:02:45]} 12. Nf3 {[%clk 0:02:55]}  Qg6 {[%clk 0:02:37]} 13. O-O {[%clk 0:02:53]}  Bh3 {[%clk 0:02:36]} 14. Ne1 {[%clk 0:02:53]}  Rfb8 {[%clk 0:02:30]} 15. Kh1 {[%clk 0:02:53]}  Bf5 {[%clk 0:02:30]} 16. f3 {[%clk 0:02:49]}  Rb2 {[%clk 0:02:27]} 17. Rg1 {[%clk 0:02:36]}  Re8 {[%clk 0:02:25]} 18. Qxa7 {[%clk 0:02:28]}  Rxe3 {[%clk 0:02:23]} 19. Qxc7 {[%clk 0:02:27]}  Rxc3 {[%clk 0:02:19]} 20. a4 {[%clk 0:02:24]}  Rbb3 {[%clk 0:02:04]} 21. a5 {[%clk 0:02:21]}  Ra3 {[%clk 0:02:04]} 22. Rxa3 {[%clk 0:02:18]}  Rxa3 {[%clk 0:02:05]} 23. Qe7 {[%clk 0:02:16]}  Ra4 {[%clk 0:01:58]} 24. Qc5 {[%clk 0:01:57]}  Kh7 {[%clk 0:01:55]} 25. Qb6 {[%clk 0:01:57]}  Qf6 {[%clk 0:01:34]} 26. a6 {[%clk 0:01:54]}  Qxd4 {[%clk 0:01:34]} 27. Qxc6 {[%clk 0:01:51]}  Qc4 {[%clk 0:01:30]} 28. Qb7 {[%clk 0:01:44]}  Rxa6 {[%clk 0:01:23]} 29. Qxf7 {[%clk 0:01:42]}  Bg6 {[%clk 0:01:23]} 30. Qf8 {[%clk 0:01:33]}  d4 {[%clk 0:01:21]} 31. f4 {[%clk 0:01:34]}  Rf6 {[%clk 0:01:19]} 32. Qb8 {[%clk 0:01:33]}  Be4 {[%clk 0:01:12]} 33. Qe5 {[%clk 0:01:30]}  d3 {[%clk 0:01:08]} 34. Nf3 {[%clk 0:01:28]}  Bxf3 {[%clk 0:01:01]} 35. gxf3 {[%clk 0:01:29]}  Qxf4 {[%clk 0:00:54]} 36. Qxf4 {[%clk 0:01:23]}  Rxf4 {[%clk 0:00:55]} 37. Kg2 {[%clk 0:01:23]}  Kg6 {[%clk 0:00:50]} 38. Rd1 {[%clk 0:01:24]}  Rd4 {[%clk 0:00:50]} 39. Kf2 {[%clk 0:01:24]}  Kh5 {[%clk 0:00:47]} 40. Ke3 {[%clk 0:01:24]}  Rd7 {[%clk 0:00:46]} 41. Rxd3 {[%clk 0:01:12]}  Rxd3+ {[%clk 0:00:46]} 42. Kxd3 {[%clk 0:01:13]}  Kh4 {[%clk 0:00:46]} 43. Ke4 {[%clk 0:00:59]}  Kh3 {[%clk 0:00:46]} 44. Kf5 {[%clk 0:00:56]}  Kxh2 {[%clk 0:00:46]} 45. Kg6 {[%clk 0:00:57]}  Kg3 {[%clk 0:00:46]} 46. Kxg7 {[%clk 0:00:57]}  h5 {[%clk 0:00:46]} 47. Kg6 {[%clk 0:00:57]}  h4 {[%clk 0:00:46]} 48. Kg5 {[%clk 0:00:57]}  h3 {[%clk 0:00:46]} 49. f4 {[%clk 0:00:57]}  h2 {[%clk 0:00:47]} 50. f5 {[%clk 0:00:58]}  h1=Q {[%clk 0:00:47]} 51. Kg6 {[%clk 0:00:58]}  Kf4 {[%clk 0:00:44]} 52. f6 {[%clk 0:00:59]}  Qh8 {[%clk 0:00:40]} 53. f7 {[%clk 0:00:58]}  Qf8 {[%clk 0:00:37]} 54. Kf6 {[%clk 0:00:58]}  Kg4 {[%clk 0:00:36]} 55. Kg6 {[%clk 0:00:58]}  Kf4 {[%clk 0:00:37]} 56. Kf6 {[%clk 0:00:59]}  Ke4 {[%clk 0:00:37]} 57. Ke6 {[%clk 0:00:59]}  Kd4 {[%clk 0:00:38]} 58. Kf6 {[%clk 0:00:58]}  Kd5 {[%clk 0:00:39]} 59. Kg6 {[%clk 0:00:58]}  Ke6 {[%clk 0:00:39]} 60. Kh7 {[%clk 0:00:59]}  Qxf7+ {[%clk 0:00:37]} 61. Kh8 {[%clk 0:00:57]}  Qe7 {[%clk 0:00:35]} 0-1


[Site "https://www.chess.com"]